{"text_format":"1","workbook":"xlsx","n_sheets":1,"sheets":["DATA"],"not_rendered":{"charts":0,"images":1,"macros":1,"external_links":0,"defined_names":1,"comments":0,"pivot_tables":0},"unopened":[],"bounds":{"document_bytes":16777216,"sheet_cells":100000,"rows_first":2000,"rows_last":500,"rows_between":2000,"halvings":0,"cell_chars":16384,"cell_head_chars":4096},"cells_cut":0,"cells_raw":0,"read":"whole","date_system":"1900"}

{"sheet":"DATA","index":0,"n_rows":98,"n_cols":9,"rows_kept":98,"cut":false,"hidden":false,"merged":[]}
[null,null,"Emp_Names",null,null,null,"",null,"اكتب اول حرف فى الكومبو بوكس"]
[{"$f":"IF($G$1=\"\",\"\",IF(LEFT(C2,LEN($G$1))=$G$1,ROW()-1,\"\"))","v":""},{"$f":"IFERROR(INDEX($C$2:$C$98,SMALL($A$2:$A$98,ROW()-1)),\"\")","v":""},"Cards Dolor Company Cards"]
[{"$f":"IF($G$1=\"\",\"\",IF(LEFT(C3,LEN($G$1))=$G$1,ROW()-1,\"\"))","v":""},"","Vulputate Posuere "]
["","","Donec Sollicitudin Limited"]
["","","Sit PC Cards"]
["","","Dapibus Id Corp."]
["","","Turpis Egestas Inc."]
["","","Rutrum Incorporated"]
["","","Non Ante Consulting"]
["","","Sed Orci Corp Hospital"]
["","","Mollis PC Cards"]
["","","Sem Molestie Sodales School"]
["","","A Odio Semper Consulting"]
["","","Lacinia  Incorporated"]
["","","Orci Ut LLP School"]
["","","Cum Sociis Natoque Consulting"]
["","","Euismod Associates"]
["",""," Hospital Incorporated"]
["","","Neque Sed Eget Industries"]
["","","Commodo Consulting"]
["",""," Hospital Odio Company"]
["","","Libero Lacus Inc. School"]
["","","Ultrice Incorporated"]
["","","Home Etiam Consulting"]
["",""," Sollicitudin Foundation"]
["","","Home Ipsum Company"]
["","","Home Foundation"]
["","","Metus Vivamus Euismod Ltd"]
["","","Nulla Foundation Hospital"]
["",""," School Dis Limited"]
["","","Limited Hospital"]
["","","Et LLP Home School"]
["","","Eros Turpis Incorporated"]
["",{"$f":"IFERROR(INDEX($C$2:$C$98,SMALL($A$2:$A$98,ROW()-1)),\"\")","v":""}," Hospital Industries"]
["","","Duis Mi Enim Associates"]
["","","Nec Luctus Foundation"]
["","","Non Lacinia Foundation"]
["","","Praesent Corp. School"]
["","","Non Quam Corp.Home"]
["","","Non Sollicitudin Institute"]
["",""," Hospital Praesent Corp."]
["","","Dignissim Associates"]
["","","Consequat Company"]
["","","Arcu Limited Home"]
["","","Nulla Foundation Stationary"]
["","","Semper Dui Corporation"]
["","","Tellus Sem LLP Stationary"]
["","","Phasellus Elit Inc. Paper"]
["","","Habitant Morb Office"]
["","","Tortor Limited Stationary"]
["","","Tellus Sem PC Paper"]
["","","Vehicula Aliquet Office"]
["","","Turpis Nulla Consulting"]
["","","Ligula Elit Paper"]
["","","Aliquet Inc. Stationary"]
["","","Eu Inc. Stationary"]
["","","Fames Ac Turpis  Office"]
["","","Nullam  Office"]
["","","Eu Industries Supplies"]
["","","Erat Vitae Risus Company"]
["","","Sed Turpis Office"]
["","","Sit Amet Corporation Supplies"]
["","","Duis Elementum Company"]
["","","Mauris Eu Office"]
["","","Mi Tempor Company"]
["",{"$f":"IFERROR(INDEX($C$2:$C$98,SMALL($A$2:$A$98,ROW()-1)),\"\")","v":""},"Ut LLP Stationary"]
[{"$f":"IF($G$1=\"\",\"\",IF(LEFT(C67,LEN($G$1))=$G$1,ROW()-1,\"\"))","v":""},"","Amet Associates Supplies"]
["","","Sed Consulting Paper"]
["","","Sapien  Office"]
["","","Nulla Corporation Paper"]
["","","Quis Pede  Paper"]
["","","Congue PC Supplies"]
["","","Vestibulum  Paper"]
["","","Diam Eu Limited"]
["","","Nascetur  Office"]
["","","Integer T Office"]
["","","Interdum Sed Limited"]
["","","Nec Enim  Office"]
["","","Cum Sociis Associates"]
["","","Nullam Lobortis  Paper"]
["","","Amet Faucibus Company"]
["","","Vestibulum  Office"]
["","","Ligula Donec Office"]
["","","Mattis Ornare Corp. Stationary"]
["","","Aliquam Eros Paper"]
["","","Mi Tempor Incorporated"]
["","","Cum Sociis Industries"]
["","","Pede Consulting Stationary"]
["","","Adipiscing  Paper"]
["","","Ullamcorper  Paper"]
["","","Leo Morbi Neque  Paper"]
["","","Netus Industries Supplies"]
["","","Dui Consulting Office"]
["","","Risus Company Supplies"]
["","","Vivamus Sit Corporation"]
["","","Dignissim PC Stationary"]
["","","Euismod Enim Etiam LLC"]
["","","Cursus  Paper"]